bitfinex/quotes_ETHUSD_20240921
["timestamp","ask_amount","ask_price","bid_price","bid_amount"]
[1726933371646,0.83687,2561.9,2561.7,1.71296135]
[1726933371854,0.83687,2561.9,2561.8,0.12256597]
[1726933372228,0.55,2561.9,2561.8,3.9035]
[1726933372430,0.55,2562.2,2561.9,3.90333]
[1726933372654,0.55,2562.2,2562.0,1.71296135]
[1726933372826,1.76109406,2562.2,2562.0,1.71296135]
[1726933373021,1.76109406,2562.2,2562.1,0.12252365]
[1726933374726,2.2653,2562.3,2562.1,0.12252365]
[1726933374923,0.3321588,2562.4,2562.2,5.61585135]
[1726933375476,0.3321588,2562.4,2562.3,0.12178049]
[1726933376771,0.8821588,2562.4,2562.3,0.12178049]
[1726933378649,0.55,2562.4,2562.3,0.12178049]
[1726933380286,0.83153,2562.4,2562.3,0.12178049]
[1726933380879,0.55,2562.3,2562.2,1.71296135]
[1726933381176,0.55,2562.4,2562.2,1.71296135]
[1726933381747,0.55,2562.4,2562.2,5.61583135]
[1726933383075,0.55,2562.4,2562.2,1.71296135]
[1726933383273,1.22176,2562.4,2562.0,5.61609135]
[1726933383474,0.55,2562.2,2561.8,5.61635135]
[1726933383677,0.55,2562.0,2561.4,3.90403]
[1726933383901,0.55,2561.8,2561.4,3.90403]
[1726933384093,0.55,2561.8,2561.4,5.61699135]
[1726933384273,0.55,2561.6,2561.4,5.61699135]
[1726933384999,0.55,2561.8,2561.5,3.90396]
[1726933385646,0.55,2561.8,2561.4,5.61699135]
[1726933386101,0.55,2561.8,2561.4,1.71296135]
[1726933386387,0.3321588,2562.1,2561.7,3.90358]
[1726933386550,0.3321588,2562.1,2561.9,3.90333]
[1726933386754,0.3321588,2562.1,2562.0,5.61616135]
[1726933386955,2.3965,2562.4,2562.1,3.90295]
[1726933387251,2.3965,2562.4,2562.2,5.72931964]
[1726933388302,0.55,2562.3,2562.2,5.72931964]
[1726933391609,0.55,2562.7,2562.5,3.90243]
[1726933391913,2.4344095,2562.8,2562.7,3.90213]
[1726933391914,0.0379095,2562.8,2562.7,3.90213]
[1726933392120,0.0379095,2562.8,2562.6,4.01569188]
[1726933392410,0.0379095,2562.8,2562.7,0.11339779]
[1726933392999,0.5879095,2562.8,2562.7,0.11339779]
[1726933398832,0.5879095,2562.8,2562.6,3.90228]
[1726933399157,0.5879095,2562.8,2562.7,0.11324672]
[1726933400928,7.18343045,2562.8,2562.7,0.11324672]
[1726933401096,6.8849895,2562.8,2562.7,0.11324672]
[1726933401295,0.55,2562.7,2562.3,3.90272]
[1726933401597,4.45214,2562.7,2562.2,5.61584135]
[1726933405847,4.45214,2562.7,2562.3,0.11327565]
[1726933406138,5.53083895,2562.7,2562.3,0.11327565]
[1726933408346,1.62869895,2562.7,2562.4,1.71296135]
[1726933408847,1.62869895,2562.7,2562.5,0.11327491]
[1726933412447,5.53083895,2562.7,2562.5,0.11327491]
[1726933413430,1.62869895,2562.7,2562.5,0.11327491]
[1726933414018,5.53083895,2562.7,2562.5,0.11327491]
[1726933414362,1.34638485,2562.6,2562.5,0.11327491]
[1726933415825,0.55,2562.5,2562.3,3.90266]
[1726933416245,0.55,2562.7,2562.3,3.90266]
[1726933419858,0.55,2562.7,2562.4,1.71296135]
[1726933420430,0.55,2562.7,2562.4,5.61553135]
[1726933420749,0.55,2562.7,2562.5,4.01574268]
[1726933420928,0.3700683,2562.8,2562.6,1.71296135]
[1726933421129,0.3700683,2562.8,2562.6,5.61513135]
[1726933421439,0.3700683,2562.8,2562.7,0.11328448]
[1726933422335,0.9200683,2562.8,2562.7,0.11328448]
[1726933422529,3.63040513,2562.8,2562.7,0.11328448]
[1726933422729,7.53238513,2562.8,2562.7,0.11328448]
[1726933422941,0.55,2562.7,2562.3,7.80528]
[1726933423568,0.55,2562.7,2562.4,1.71296135]
[1726933423766,0.55,2562.7,2562.5,3.90241]
[1726933425570,0.55,2562.7,2562.4,5.61554135]
[1726933435894,0.55,2562.7,2562.5,0.11327148]
[1726933436881,0.0379095,2562.8,2562.7,3.90213]
[1726933437250,0.0379095,2562.8,2562.7,4.01533552]
[1726933441074,0.0379095,2562.8,2562.7,0.11320552]
[1726933441645,0.0379095,2562.8,2562.7,4.01533552]
[1726933446264,0.0379095,2562.8,2562.7,0.11320552]
[1726933446265,0.5879095,2562.8,2562.7,0.11320552]
[1726933446468,0.55,2562.7,2562.3,3.90267]
[1726933446764,0.55,2562.7,2562.3,7.80533]
[1726933446991,0.55,2562.7,2562.4,5.72860034]
[1726933450580,2.372,2562.6,2562.4,0.11305899]
[1726933450779,0.55,2562.5,2562.4,0.11305899]
[1726933450985,0.55,2562.5,2562.2,1.71296135]
[1726933451311,0.55,2562.5,2562.3,0.11307309]
[1726933451864,0.55,2562.5,2562.3,4.01578309]
[1726933453975,2.922,2562.4,2562.3,0.11307309]
[1726933454196,2.922,2562.4,2562.1,3.90294]
[1726933454428,2.922,2562.4,2562.2,0.11323483]
[1726933455644,2.922,2562.4,2562.2,4.01612483]
[1726933462900,0.55,2562.4,2562.3,1.71296135]
[1726933463097,0.55,2562.5,2562.3,5.72908]
[1726933475065,0.0379095,2562.8,2562.7,3.90213]
[1726933475225,0.0379095,2562.8,2562.7,5.61509135]
[1726933475420,0.0379095,2562.8,2562.7,5.7283312]
[1726933483543,0.0379095,2562.8,2562.7,5.72715949]
[1726933494182,0.5879095,2562.8,2562.7,0.11323985]
[1726933494384,0.88577045,2562.8,2562.7,0.11323985]
[1726933495866,3.27647045,2562.8,2562.7,0.11323985]
[1726933496063,0.55,2562.7,2562.4,3.9025]
[1726933497178,0.55,2562.7,2562.5,1.71296135]
[1726933507612,2.3648,2562.6,2562.5,1.71296135]
[1726933507780,3.23985705,2562.6,2562.5,1.71296135]
[1726933508986,3.23985705,2562.6,2562.5,5.61539135]
[1726933509689,0.55,2562.7,2562.5,5.61539135]
[1726933510833,0.55,2562.7,2562.6,0.11312692]
[1726933518449,0.33577045,2562.8,2562.6,0.11312692]
[1726933518450,0.5879095,2562.8,2562.7,3.90213]
[1726933518615,0.0379095,2562.8,2562.7,5.61509135]
[1726933518951,0.0379095,2562.8,2562.7,5.72820761]
[1726933520212,0.5879095,2562.8,2562.7,5.72820761]
[1726933521809,3.23848045,2562.8,2562.7,0.11311626]
[1726933522040,2.9432095,2562.8,2562.7,0.11311626]
[1726933522226,0.55,2562.7,2562.5,3.90242]
[1726933525737,0.55,2562.7,2562.6,0.11313036]
[1726933526877,0.0379095,2562.8,2562.7,3.90213]
[1726933527031,0.0379095,2562.8,2562.7,6.13556367]
[1726933527359,0.0379095,2562.8,2562.7,6.17070118]
[1726933530529,3.0540095,2562.8,2562.7,0.11317118]
[1726933530725,3.35941045,2562.8,2562.7,0.11317118]
[1726933530938,0.55,2562.7,2562.5,5.61539135]
[1726933534454,0.55,2562.7,2562.5,1.71296135]
[1726933534646,0.55,2562.7,2562.3,5.61560135]
[1726933539271,0.55,2562.5,2562.3,5.61560135]
[1726933540132,0.55,2562.5,2562.3,9.51826135]
[1726933540667,0.55,2562.5,2562.3,5.61560135]
[1726933540839,0.55,2562.5,2562.4,0.14961932]
[1726933549660,0.55,2562.5,2562.4,4.05220932]
[1726933550463,0.55,2562.5,2562.4,0.14961932]
[1726933550862,7.01144,2562.5,2562.4,0.14961932]
[1726933551067,6.70983,2562.5,2562.4,0.14961932]
[1726933551278,4.45243,2562.5,2562.0,3.90318]
[1726933551468,0.55,2562.3,2562.0,3.90318]
[1726933554465,2.2574,2562.2,2561.6,2.1554]
[1726933554661,0.55,2562.1,2561.9,1.71296135]
[1726933555789,0.55,2562.1,2562.0,0.14975008]
[1726933557055,4.45304,2562.1,2562.0,0.14975008]
[1726933557256,6.71044,2562.1,2562.0,0.14975008]
[1726933557490,0.55,2561.7,2561.4,5.61704135]
[1726933557659,0.55,2561.7,2561.4,1.71296135]
[1726933557860,0.55,2561.6,2561.5,0.14982772]
[1726933567099,0.55,2561.6,2561.5,0.10764547]
[1726933567309,0.55,2561.6,2561.5,0.14871015]
[1726933567469,0.55,2561.6,2561.5,4.05267015]
[1726933567679,0.55,2561.8,2561.5,6.20807015]
[1726933567867,1.27559588,2561.8,2561.7,1.71296135]
[1726933568442,1.27559588,2561.8,2561.7,1.86164044]
[1726933568700,0.55,2561.9,2561.7,1.86164044]
[1726933569805,3.0205,2561.8,2561.7,1.86164044]
[1726933575020,3.0205,2561.8,2561.7,0.14867909]
[1726933575177,3.0205,2561.8,2561.3,3.90426]
[1726933575178,2.8432,2561.7,2561.3,1.71296135]
[1726933575513,0.67467,2561.6,2561.3,5.61722135]
[1726933575728,0.55,2561.5,2561.3,1.71296135]
[1726933576175,0.55,2561.5,2561.2,3.9043]
[1726933576371,0.55,2561.3,2561.2,3.9043]
[1726933580012,0.55,2561.3,2561.2,5.61726135]
[1726933582017,0.55,2561.5,2561.3,3.90423]
[1726933582311,0.55,2561.5,2561.4,1.71296135]
[1726933582515,0.93593288,2561.5,2561.4,1.71296135]
[1726933583102,0.55,2561.5,2561.4,1.71296135]
[1726933583308,0.3321588,2561.7,2561.6,3.90381]
[1726933583478,5.39280064,2562.3,2561.6,7.77214135]
[1726933583683,2.3025,2562.5,2562.2,1.71296135]
[1726933583911,2.3025,2562.5,2562.4,1.71296135]
[1726933584117,2.56596588,2562.5,2562.4,1.71296135]
[1726933585111,2.56596588,2562.5,2562.2,1.71296135]
[1726933585283,0.55,2562.4,2562.2,1.71296135]
[1726933585489,0.55,2562.4,2562.1,5.61589135]
[1726933585895,0.55,2562.4,2562.2,0.14848463]
[1726933586105,0.86159659,2562.3,2562.2,0.14848463]
[1726933588508,0.55,2562.4,2562.2,0.14848463]
[1726933591808,0.55,2562.4,2562.2,4.05136463]
[1726933594334,0.55,2562.4,2562.3,3.90274]
[1726933594545,0.55,2562.4,2562.3,5.61570135]
[1726933594701,0.55,2562.4,2562.3,5.76416015]
[1726933595770,0.55,2562.6,2562.3,1.86142015]
[1726933595904,0.55,2562.4,2562.3,1.86142015]
[1726933599808,6.5368188,2562.7,2562.3,1.86142015]
[1726933599809,0.55,2562.6,2562.4,3.90246]
[1726933600001,0.64947475,2562.8,2562.5,1.71296135]
[1726933600246,0.0379095,2562.8,2562.7,5.61509135]
[1726933600402,0.0379095,2562.8,2562.7,1.71296135]
[1726933600624,0.0379095,2562.8,2562.7,1.8612482]
[1726933601055,0.0379095,2562.8,2562.7,5.7633782]
[1726933601259,0.0379095,2562.8,2562.7,5.72120008]
[1726933601770,0.5879095,2562.8,2562.7,5.72120008]
[1726933606159,7.06913045,2562.8,2562.7,0.14828685]
[1726933606359,3.16715045,2562.8,2562.7,0.14828685]
[1726933606563,0.55,2562.7,2562.4,3.90256]
[1726933609042,0.55,2562.7,2562.5,1.71296135]
[1726933609241,1.25690605,2562.7,2562.5,1.71296135]
[1726933611073,1.25690605,2562.7,2562.5,1.67078652]
[1726933613331,1.25690605,2562.7,2562.3,3.90263]
[1726933613332,0.55,2562.5,2562.3,5.61559135]
[1726933614165,0.55,2562.5,2562.3,9.51825135]
[1726933614384,0.55,2562.5,2562.3,1.71296135]
[1726933614671,0.55,2562.3,2562.2,3.90286]
[1726933615646,0.55,2562.3,2562.2,4.05108369]
[1726933616381,0.55,2562.5,2562.2,4.05108369]
[1726933616570,0.55,2562.5,2562.3,1.71296135]
[1726933617096,0.55,2562.5,2562.4,0.14822011]
[1726933617390,0.93792649,2562.5,2562.4,0.14822011]
[1726933619090,0.93792649,2562.5,2562.4,0.10605235]
[1726933619291,0.93792649,2562.5,2562.4,0.14685572]
[1726933622567,0.55,2562.5,2562.4,4.04944572]
[1726933626981,0.55,2562.5,2562.4,4.00727105]
[1726933627488,0.55,2562.5,2562.4,4.04805019]
[1726933632798,0.55,2562.6,2562.4,4.04805019]
[1726933632958,3.0428,2562.6,2562.4,0.14546019]
[1726933633163,0.88749588,2562.5,2562.4,4.04805019]
[1726933633479,0.88749588,2562.5,2562.4,0.14546019]
[1726933634788,0.88749588,2562.5,2562.4,4.04805019]
[1726933635965,0.88749588,2562.5,2562.4,0.14546019]
[1726933636513,0.55,2562.4,2562.3,3.90263]
[1726933636678,0.88802959,2562.4,2562.3,3.90263]
[1726933636879,0.55,2562.4,2562.3,3.90263]
[1726933637227,0.55,2562.5,2562.3,3.90263]
[1726933638862,0.55,2562.5,2562.2,3.90287]
[1726933639408,0.55,2562.5,2562.2,7.80564]
[1726933640459,0.55,2562.5,2562.2,3.90277]
[1726933640706,0.55,2562.3,2562.2,3.90277]
[1726933640869,0.55,2562.3,2562.1,5.61599135]
[1726933641076,0.55,2562.3,2561.9,3.90329]
[1726933641077,3.009,2562.3,2562.0,3.90315]
[1726933641482,3.009,2562.3,2562.1,3.90303]
[1726933641713,0.55,2562.1,2561.9,5.61616135]
[1726933642068,0.55,2562.1,2562.0,3.90315]
[1726933643795,0.55,2562.1,2561.7,7.80711]
[1726933644007,0.55,2562.1,2561.5,3.90382]
[1726933644008,0.55,2561.9,2561.5,3.90382]
[1726933644185,2.459,2562.0,2561.3,6.05962]
[1726933644186,0.55,2561.7,2561.3,6.05962]
[1726933644376,0.55,2561.5,2561.3,3.90418]
[1726933644577,0.55,2561.5,2561.3,7.80832]
[1726933644833,0.55,2561.5,2561.4,5.61707135]
[1726933645682,0.55,2561.5,2561.4,5.75324505]
[1726933649893,0.55,2561.5,2561.4,1.84913505]
[1726933650088,0.8509,2561.5,2561.4,1.84913505]
[1726933650317,0.79909355,2561.5,2561.4,1.84913505]
[1726933652629,0.49819355,2561.5,2561.4,1.84913505]
[1726933655805,4.40215355,2561.5,2560.9,2.1554]
[1726933656007,2.331,2561.2,2560.8,3.90502]
[1726933656221,1.228528,2561.1,2561.0,0.13195428]
[1726933656529,1.228528,2561.1,2560.9,0.13196982]
[1726933656751,1.228528,2561.1,2561.0,0.13195428]
[1726933657029,3.559528,2561.1,2561.0,0.13195428]
[1726933657194,7.7962568,2561.1,2561.0,0.13195428]
[1726933657395,7.7962568,2561.1,2559.7,0.0379095]
[1726933657396,2.881,2560.7,2560.1,3.906]
[1726933657628,0.55,2560.5,2560.1,3.906]
[1726933657798,0.55,2560.5,2560.2,0.13207862]
[1726933658002,0.678611,2560.6,2560.2,0.13207862]
[1726933658003,0.55,2560.3,2560.2,0.13207862]
[1726933659299,0.55,2560.5,2560.2,5.75097997]
[1726933659626,0.55,2560.5,2560.4,1.71296135]
[1726933660008,0.55,2560.5,2560.4,0.13204753]
[1726933660691,0.55,2560.6,2560.4,0.13204753]
[1726933661905,0.55,2560.6,2560.4,4.03764753]
[1726933662717,0.55,2560.6,2560.4,0.13204753]
[1726933663032,0.898373,2560.6,2560.4,0.13204753]
[1726933663394,0.898373,2560.6,2560.2,7.62117329]
[1726933664006,0.898373,2560.6,2560.3,0.13246174]
[1726933664479,0.898373,2560.6,2560.2,7.62117329]
[1726933664638,0.898373,2560.6,2560.4,0.1324462]
[1726933664941,0.898373,2560.6,2560.2,7.62117329]
[1726933665112,0.898373,2560.6,2560.5,3.84777394]
[1726933665521,3.220073,2560.6,2560.5,0.13243065]
[1726933665729,3.220073,2560.6,2560.3,3.71534329]
[1726933665927,0.55,2560.4,2560.3,3.71534329]
[1726933666534,2.8717,2560.4,2560.3,3.71534329]
[1726933666833,2.8717,2560.4,2560.1,3.71534329]
[1726933667639,2.8717,2560.4,2559.9,3.71534329]
[1726933668433,2.8717,2560.4,2559.7,3.9444895]
[1726933668672,2.8717,2560.4,2559.9,3.71534329]
[1726933668673,0.55,2560.2,2559.9,3.71534329]
[1726933668863,0.55,2560.0,2559.7,3.9444895]
[1726933669144,0.55,2560.0,2559.9,3.71534329]
[1726933675776,0.55,2560.0,2559.9,3.84878841]
[1726933678635,0.55,2560.2,2559.9,3.84878841]
[1726933678853,0.55,2560.0,2559.9,0.13344512]
[1726933679269,0.55,2560.2,2559.9,4.03984512]
[1726933680083,0.55,2560.2,2560.1,3.71534329]
[1726933680298,0.55,2560.2,2560.1,3.84906345]
[1726933682095,0.55,2560.2,2560.1,1.84881057]
[1726933682304,0.87304069,2560.2,2560.1,1.84881057]
[1726933682706,0.55,2560.4,2560.2,3.90593]
[1726933682890,0.55,2560.4,2560.3,1.71509041]
[1726933683096,0.55,2560.4,2560.3,1.84877947]
[1726933687915,0.55,2560.4,2560.3,0.13368906]
[1726933688118,0.87670103,2560.4,2560.3,1.71509041]
[1726933688275,0.87670103,2560.4,2560.3,1.84457363]
[1726933694230,0.55,2560.4,2560.3,1.84457363]
[1726933694727,0.55,2560.6,2560.3,1.84457363]
[1726933694934,0.55,2560.6,2560.5,1.71509041]
[1726933695144,0.55,2560.6,2560.5,1.84455966]
[1726933695905,2.3338,2560.9,2560.5,3.99995966]
[1726933696090,0.6120341,2561.0,2560.8,5.62011041]
[1726933696328,0.6120341,2561.0,2560.9,0.12937969]
[1726933696641,0.90661751,2561.0,2560.9,0.12937969]
[1726933697498,1.45661751,2561.0,2560.9,0.12937969]
[1726933700846,1.45661751,2561.0,2560.5,3.90535]
[1726933701057,1.45661751,2561.0,2560.9,1.84431263]
[1726933701220,0.55,2560.7,2560.3,6.06104]
[1726933701409,0.55,2560.7,2560.6,1.71509041]
[1726933701814,0.55,2560.9,2560.6,1.71509041]
[1726933702041,0.55,2560.9,2560.8,1.71509041]
[1726933707748,0.55,2560.7,2560.3,3.90571]
[1726933707950,0.55,2560.7,2560.6,1.71509041]
[1726933708740,0.55,2560.7,2560.6,1.83988568]
[1726933710981,2.9156,2560.7,2560.6,0.12479527]
[1726933711210,3.63292634,2560.7,2560.6,0.12479527]
[1726933711517,0.55,2560.5,2560.0,3.90614]
[1726933711815,0.55,2560.5,2560.4,1.71509041]
[1726933713873,2.9156,2560.5,2560.4,1.71509041]
[1726933714094,3.27889263,2560.5,2560.4,1.71509041]
[1726933715197,3.27889263,2560.5,2560.4,0.0284197]
[1726933716115,3.27889263,2560.5,2560.4,1.71509041]
[1726933720817,3.27889263,2560.5,2560.4,1.84031731]
[1726933721317,3.27889263,2560.5,2560.4,0.1252269]
[1726933721496,3.27889263,2560.5,2560.4,1.84031731]
[1726933721679,3.27889263,2560.5,2560.4,1.71509041]
[1726933722018,0.91329263,2560.5,2560.4,1.84031731]
[1726933729290,3.19449263,2560.5,2560.4,0.1252269]
[1726933729646,3.19449263,2560.5,2560.3,1.71509041]
[1726933729862,0.91020139,2560.4,2560.3,1.71509041]
[1726933730465,0.55,2560.1,2559.7,2.1933095]
[1726933730670,0.55,2560.1,2560.0,1.71509041]
[1726933735992,0.55,2560.3,2560.0,1.83912998]
[1726933736298,0.55,2560.3,2560.2,1.71509041]
[1726933736599,0.55,2560.3,2560.2,1.83920848]
[1726933736928,0.86914014,2560.3,2560.2,1.83920848]
[1726933743799,0.55,2560.5,2560.2,1.83920848]
[1726933744091,0.55,2560.5,2560.4,1.71509041]
[1726933744299,0.55,2560.5,2560.4,1.25748763]
[1726933744602,0.55,2560.5,2560.4,1.38166707]
[1726933747110,0.40709108,2560.6,2560.5,2.1554]
[1726933747324,2.4864,2561.0,2560.5,2.1554]
[1726933747620,0.24864,2560.9,2560.5,2.2794988]
[1726933748591,0.55,2560.8,2560.5,2.2794988]
[1726933748932,0.55,2560.8,2560.7,1.71509041]
[1726933749647,0.55,2560.8,2560.7,1.83908962]
[1726933749842,0.91912279,2560.8,2560.7,1.83908962]
[1726933752942,0.55,2560.8,2560.7,1.83908962]
[1726933753237,2.4864,2561.2,2560.8,2.1554]
[1726933753441,2.4864,2561.2,2561.1,1.71509041]
[1726933753946,2.4864,2561.2,2561.1,1.8388905]
[1726933754140,3.125452,2561.2,2561.1,1.8388905]
[1726933754444,2.4864,2561.4,2561.1,1.8388905]
[1726933754649,2.4864,2561.6,2561.3,1.71509041]
[1726933754850,2.4864,2561.6,2561.5,1.71509041]
[1726933755022,2.89235895,2561.6,2561.4,0.12369529]
[1726933755226,0.2892359,2561.5,2561.2,2.1554]
[1726933755551,0.2892359,2561.5,2561.3,0.12371082]
[1726933755854,0.2892359,2561.5,2561.4,1.71509041]
[1726933756014,0.2892359,2561.5,2561.4,1.36671267]
[1726933756218,0.2892359,2561.5,2561.4,1.49040796]
[1726933756964,0.8392359,2561.5,2561.4,1.49040796]
[1726933760416,0.8392359,2561.5,2561.4,1.36671267]
[1726933762958,0.8392359,2561.5,2561.4,1.49003695]
[1726933765477,0.8392359,2561.5,2561.4,0.12332428]
[1726933771591,0.55,2561.5,2561.4,0.12332428]
[1726933771954,0.55,2561.7,2561.4,0.12332428]
[1726933772267,0.95586679,2561.7,2561.5,1.71509041]
[1726933772594,0.95586679,2561.7,2561.6,0.12325902]
[1726933773800,4.85953679,2561.7,2561.6,0.12325902]
[1726933773971,6.00156635,2561.7,2561.6,0.12325902]
[1726933775399,2.09789635,2561.7,2561.6,0.12325902]
[1726933777110,2.09789635,2561.7,2560.9,9.96497]
[1726933777111,8.32654635,2561.7,2560.9,9.96497]
[1726933777446,7.18451679,2561.7,2561.3,1.71509041]
[1726933777732,7.51667559,2561.7,2561.3,1.71509041]
[1726933777938,7.51667559,2561.7,2561.4,0.1190069]
[1726933778153,0.55,2561.5,2561.4,0.1190069]
[1726933778728,0.55,2561.5,2561.3,1.71509041]
[1726933787150,0.55,2561.5,2561.4,0.11897267]
[1726933804580,0.61192082,2561.6,2561.5,3.90396]
[1726933804779,0.40006399,2562.2,2562.1,3.90304]
[1726933804985,3.08338888,2562.6,2562.2,3.90282]
[1726933805171,0.30833889,2562.5,2562.4,1.71509041]
[1726933805492,0.71479255,2562.5,2562.4,1.83367066]
[1726933806774,1.26479255,2562.5,2562.4,1.83367066]
[1726933807318,1.26479255,2562.5,2562.4,0.11858025]
[1726933807619,1.26479255,2562.5,2562.2,1.71509041]
[1726933807907,0.98481814,2562.4,2562.2,1.71509041]
[1726933810674,0.98481814,2562.4,2562.3,0.11821263]
[1726933811293,0.55,2562.4,2562.3,0.11821263]
[1726933813703,3.0216,2562.4,2562.3,0.11821263]
[1726933814021,3.0216,2562.4,2562.0,5.61826041]
[1726933814200,3.0216,2562.4,2562.3,0.11813739]
[1726933814405,3.0216,2562.4,2562.0,1.71509041]
[1726933814630,0.55,2562.2,2562.0,1.71509041]
[1726933815687,0.55,2562.2,2562.0,5.61825041]
[1726933816892,0.55,2562.2,2562.0,1.71509041]
[1726933817602,0.55,2562.2,2562.0,5.61826041]
[1726933819329,0.55,2562.2,2562.0,1.71509041]
[1726933819697,0.88644054,2562.2,2562.0,5.61828041]
[1726933820636,0.88644054,2562.2,2562.0,1.71509041]
[1726933820835,0.88644054,2562.2,2562.0,5.61820041]
[1726933821042,0.55,2562.2,2562.0,5.61820041]
[1726933822907,0.55,2562.2,2562.0,1.71509041]
[1726933823212,0.55,2562.2,2562.0,0.92613838]
[1726933825755,0.55,2562.2,2562.1,0.11812057]
[1726933829122,0.34280537,2562.3,2562.1,0.11812057]
[1726933829444,0.40645366,2562.5,2562.3,2.1554]
[1726933829606,0.40645366,2562.5,2562.4,1.71509041]
[1726933830006,0.40645366,2562.5,2562.4,1.83323624]
[1726933830165,0.61178888,2562.6,2562.4,1.83323624]
[1726933831152,0.55,2562.5,2562.4,5.10941356]
[1726933833256,0.55,2562.5,2562.4,1.20682356]
[1726933839257,0.55,2562.5,2562.4,1.83323624]
[1726933841279,1.05639189,2562.5,2562.4,1.83323624]
[1726933841632,0.55,2562.5,2562.4,1.83323624]
[1726933842030,0.44467028,2562.8,2562.6,3.90228]
[1726933842229,0.44467028,2562.8,2562.7,1.71509041]
[1726933842230,0.0379095,2562.8,2562.7,1.71509041]
[1726933842461,0.0379095,2562.8,2562.7,1.83297427]
[1726933843777,0.5879095,2562.8,2562.7,1.83297427]
[1726933845208,3.0594095,2562.8,2562.7,1.83297427]
[1726933845368,3.36535045,2562.8,2562.7,1.83297427]
[1726933847116,0.89385045,2562.8,2562.7,1.83297427]
[1726933851275,0.89385045,2562.8,2562.7,0.11788386]
[1726933851476,0.89385045,2562.8,2562.5,5.61748041]
[1726933851477,0.55,2562.7,2562.5,5.61748041]
[1726933855823,0.55,2562.7,2562.6,0.11781731]
[1726933858926,0.55,2562.7,2562.6,4.02009731]
[1726933859303,0.55,2562.7,2562.6,0.11781731]
[1726933859939,0.55,2562.7,2562.6,4.02009731]
[1726933860380,0.55,2562.7,2562.6,6.17549731]
[1726933861561,0.55,2562.7,2562.6,4.02009731]
[1726933861738,0.83913095,2562.7,2562.6,4.02009731]
[1726933865173,0.55,2562.7,2562.6,4.02009731]
[1726933873855,0.0379095,2562.8,2562.7,6.05753]
[1726933874056,0.0379095,2562.8,2562.7,7.77262041]
[1726933874258,0.0379095,2562.8,2562.7,7.88965564]
[1726933875414,0.5879095,2562.8,2562.7,7.88965564]
[1726933876395,0.5879095,2562.8,2562.7,5.73425564]
[1726933879934,0.5879095,2562.8,2562.7,7.88965564]
[1726933880290,0.0379095,2562.8,2562.7,7.88965564]
[1726933888701,2.9492095,2562.8,2562.7,0.11703523]
[1726933888936,3.24413045,2562.8,2562.7,0.11703523]
[1726933891698,0.88283045,2562.8,2562.7,4.01916523]
[1726933891899,0.5879095,2562.8,2562.7,4.01916523]
[1726933906228,0.5879095,2562.8,2562.7,5.73425564]
[1726933907576,0.0379095,2562.8,2562.7,5.73425564]
[1726933907819,0.0379095,2562.8,2562.7,7.88965564]
[1726933927691,0.0379095,2562.8,2562.7,5.73425564]
[1726933940278,0.0379095,2562.8,2562.7,5.81228443]
[1726933940572,0.0379095,2562.8,2562.7,5.73425564]
[1726933941075,0.0379095,2562.8,2562.7,7.88965564]
[1726933941752,7.31244184,2563.4,2562.7,1.83212564]
[1726933941938,0.0379095,2563.6,2563.5,3.90091]
[1726933942181,0.0379095,2563.6,2563.5,5.61600041]
[1726933942393,0.0379095,2563.6,2563.5,5.72874245]
[1726933943368,2.2518,2564.1,2564.0,3.90015]
[1726933943677,2.2518,2564.1,2564.0,1.82764561]
[1726933943678,3.01626006,2564.1,2564.0,1.82764561]
[1726933943873,2.2518,2564.1,2564.0,1.82764561]
[1726933944082,2.2518,2564.1,2564.0,5.72779561]
[1726933945509,2.8018,2564.1,2564.0,5.72779561]
[1726933946512,2.8018,2564.1,2564.0,1.82764561]
[1726933946815,2.8018,2564.1,2564.0,5.72779561]
[1726933947485,0.55,2564.2,2564.1,3.9]
[1726933947811,0.55,2564.2,2564.1,5.72372073]
[1726933949995,0.55,2564.2,2564.1,1.82372073]
[1726933953428,2.2518,2564.3,2564.1,1.82372073]
[1726933953756,0.55,2564.2,2564.1,1.82372073]
[1726933955157,0.0379095,2564.4,2564.1,1.82372073]
[1726933955373,0.5879095,2564.4,2564.3,1.71509041]
[1726933959443,0.99549399,2564.4,2564.3,1.71509041]
[1726933960281,0.44549399,2564.4,2564.3,1.71509041]
[1726933960526,0.0379095,2564.4,2564.3,1.79307074]
[1726933962191,0.0379095,2564.4,2564.3,1.71509041]
[1726933962838,0.0379095,2564.4,2564.2,2.1554]
[1726933963084,0.0379095,2564.4,2564.3,1.71509041]
[1726933963665,0.0379095,2564.4,2564.3,1.81935781]
[1726933963880,0.0379095,2564.4,2564.3,1.71509041]
[1726933965977,0.5879095,2564.4,2564.3,1.71509041]
[1726933966168,0.5879095,2564.4,2564.3,1.81935781]
[1726933983326,0.0379095,2564.4,2564.3,1.81935781]
[1726933983525,0.0379095,2564.4,2564.3,1.71509041]
[1726933983844,0.0379095,2564.4,2564.3,1.81940898]
[1726933984250,0.0379095,2564.4,2564.3,1.71509041]
[1726933984747,0.0379095,2564.4,2564.3,1.81940898]
[1726933985117,0.0379095,2564.4,2564.3,1.71509041]
[1726933990612,0.0379095,2564.4,2564.3,1.81937828]
[1726933991660,0.0379095,2564.4,2564.3,1.89735687]
[1726933991962,0.0379095,2564.4,2564.3,1.81937828]
[1726933992113,0.0379095,2564.4,2564.3,3.97477828]
[1726933992451,0.0379095,2564.4,2564.3,3.87049041]
[1726933995758,0.0379095,2564.4,2564.3,2.1554]
[1726933995965,0.0379095,2564.4,2564.3,3.87049041]
[1726934006464,0.0379095,2564.4,2564.3,1.71509041]
[1726934008574,0.0379095,2564.4,2564.3,1.81935098]
[1726934008955,0.0379095,2564.4,2564.3,1.71509041]
[1726934011436,0.0379095,2564.4,2564.3,1.81935098]
[1726934011636,0.0379095,2564.4,2564.3,1.71509041]
[1726934013346,0.0379095,2564.4,2564.3,1.81937488]
[1726934013637,0.0379095,2564.4,2564.3,1.71509041]
[1726934017301,0.0379095,2564.4,2564.3,1.81937488]
[1726934018756,0.0379095,2564.4,2564.3,1.71509041]
[1726934018910,0.0379095,2564.4,2564.3,1.81937488]
[1726934020443,0.0379095,2564.4,2564.3,1.71509041]
[1726934022911,0.0379095,2564.4,2564.3,1.81937488]